{"text_format":"1","workbook":"xlsx","n_sheets":2,"sheets":["Zamowienie","Zamówienie Draft"],"not_rendered":{"charts":0,"images":2,"macros":1,"external_links":0,"defined_names":1,"comments":0,"pivot_tables":0},"unopened":[],"bounds":{"document_bytes":16777216,"sheet_cells":100000,"rows_first":2000,"rows_last":500,"rows_between":2000,"halvings":0,"cell_chars":16384,"cell_head_chars":4096},"cells_cut":0,"cells_raw":0,"read":"whole","date_system":"1900"}

{"sheet":"Zamowienie","index":0,"n_rows":106,"n_cols":5,"rows_kept":106,"cut":false,"hidden":false,"merged":[[5,1,5,2],[3,1,3,4],[1,1,1,4],[0,1,0,4],[2,1,2,4]]}
["Imie i nazwisko:"]
["Telefon:"]
["E-mail:"]
["Dodatkowe informacje:"]
[]
["Suma",{"$f":"SUM(E26+E39+E48+E56+E72+E86+E88+E93+E98+E104+E105+E106)","v":0}]
[]
[]
["NA GORĄCO",null,"Cena jednostkowa-sztuki","Ilość szt.","Suma"]
["Barszcz czerowny","250 ml",10,0,{"$f":"C10*D10","v":0}]
["Zupa grzybowa","250 ml",21,0,0]
["Pierogi z kapustą i grzybami","10 szt.",40,0,0]
["Pyzy z mięsem wieprzowym│okrasa","3 szt.",35,0,0]
["Pierogi z kaczką i pomarańczą","10 szt.",45,0,0]
["Pierogi z jeleniem","10 szt.",45,0,0]
["Pierogi z serem na słodko","10 szt.",40,0,0]
["Kapusta wigilijna z grzybami","200 g",15,0,0]
["Filet z pstrąga│krem rakowy","200 g",36,0,0]
["Filet z okonia│sos milabelkowy","200 g",39,0,0]
["Rolada drobiowa│sos pieczeniowy│mus grzybowo-wieprzowy","200 g",29,0,0]
["Noga z kaczki│trawa żubrowa│sos pomarańczowy","200 g",36,0,0]
["Karkówka z dzika│sos z pieczonych śliwek","200 g",38,0,0]
["Kopytka domowe│pietruszka","200 g",17,0,0]
["Buraki w glazurze pomarańczowo-miodowej","200 g",15,0,0]
["Pasztecik drożdżowy z kapustą i grzybami","10 szt.",40,0,{"$f":"C25*D25","v":0}]
[null,null,null,null,{"$f":"SUM(E10:E25)","v":0}]
[]
["NA ZIMNO \n(zamówienia min. 0,5 kg lub wielokrotność)",null,"Cena jednostkowa sztuki","Ilość szt.","Suma"]
["Śledź po staropolsku│jabłko│cebula","1 kg",69,0,{"$f":"C29*D29","v":0}]
["Ryba│sos warzywny","1 kg",79,0,{"$f":"C30*D30","v":0}]
["Sałatka ‘Szuba”","1 kg",71,0,0]
["Tradycyjna sałatka jarzynowa","1 kg",65,0,0]
["Tymbaliki rybne","6 szt.",54,0,0]
["Rolada ze szczupaka│sos tatarski","1 kg",140,0,0]
["Jesiotr wędzony (ok. 1,5 kg)","1 szt.",170,0,0]
["Kaczka faszerowana (ok. 2 kg)","1 szt.",160,0,0]
["Perliczka faszerowana (ok. 1,4 kg)","1 szt.",170,0,0]
["Suraski ser podpuszczkowy (ok. 200 g)","1 szt.",23,0,0]
[null,null,null,null,{"$f":"SUM(E29:E38)","v":0}]
[]
["NA SŁODKO",null,"Cena jednostkowa sztuki","Ilośc szt.","Suma"]
["Kutia z bakaliami","1 kg",59,0,{"$f":"C42*D42","v":0}]
["Sernik Howieński│pistacja (ok. 1,2 kg)","1,2 kg",98,0,{"$f":"C43*D43","v":0}]
["Piernik│konfitura śliwkowa (ok. 1,2 kg)","1,2 kg",68,0,0]
["Strucla z makiem (ok. 1 kg)","1 kg",70,0,0]
["Tarta ze śliwkami (ok. 1 kg)","1 kg",62,0,0]
["Kompot z suszu","1 l",27,0,0]
[null,null,null,null,{"$f":"SUM(E42:E47)","v":0}]
[]
["HOWIEŃSKIE SPECJAŁY",null,"Cena jednostkowa-sztuki","Ilość szt.","Suma"]
["Pierniczki Howieńskie","10 szt.",15,0,{"$f":"C51*D51","v":0}]
["Chleb Howieński (ok. 1 kg)","1 szt.",27,0,{"$f":"C52*D52","v":0}]
["Chleb Howieński ze śliwką (ok. 1 kg)","1 szt.",28,0,0]
["Podpiwek Howieński","1 l",27,0,0]
["Howieński kwas chlebowy","1 l",27,0,0]
[null,null,null,null,{"$f":"SUM(E51:E55)","v":0}]
[]
["WĘDLINY│PASZTETY│ROLADY \n(zamówienia min. 0,5 kg lub wielokrotność)",null,"Cena jednostkowa-sztuki","Ilość szt.","Suma"]
["Boczek wędzony ","1 kg",52,0,{"$f":"C59*D59","v":0}]
["Szynka tradycyjnie wędzona","1 kg",58,0,{"$f":"C60*D60","v":0}]
["Polędwica tradycyjna","1 kg",70,0,0]
["Kiełbasa palcówka swojska","1 kg",54,0,0]
["Kiełbasa z sarny","1 kg",110,0,0]
["Schab z dzika","1 kg",108,0,0]
["Karkówka z dzika wędzona","1 kg",98,0,0]
["Schab wieprzowy dojrzewający w ziołach","1 kg",64,0,0]
["Słonina wieprzowa slolona","1 kg",54,0,0]
["Kabanosy z dzika","1 kg",105,0,0]
["Pasztet wieprzowy│śliwka","1 kg",54,0,0]
["Pasztet z jelenia│żurawina","1 kg",84,0,0]
["Pasztet drobiowy│morela│pistacja","1 kg",72,0,0]
[null,null,null,null,{"$f":"SUM(E59:E71)","v":0}]
[]
["W SŁOIKU",null,"Cena jednostkowa-sztuki","Ilość szt.","Suma"]
["Sos tatarski","250 g",22,0,{"$f":"C75*D75","v":0}]
["Mus dyniowy do mięs","250 g",22,0,{"$f":"C76*D76","v":0}]
["Sos winegret z pestkamu","250 g",24,0,0]
["Dynia marynowana","250 g",21,0,0]
["Smalec wiejski","250 g",22,0,0]
["Słony Karmel Howieński","250 g",24,0,0]
["Howieńskie masło orzechowe","250 g",28,0,0]
["Słodka przepalanka Howieńska 40%","500 ml",130,0,0]
["Białowieski ‘Bimber’ śliwkowy 63%","500 ml",160,0,0]
["Specjał ‘Podlaski Samogon’ 50%","500 ml",150,0,0]
["Naturalna nalewka pigwowa 30%","500 ml",150,0,0]
[null,null,null,null,{"$f":"SUM(E75:E85)","v":0}]
[]
["BOX CIAST","1,5 kg",89,0,{"$f":"C88*D88","v":0}]
["Orzechowiec"]
["Pani Walewska"]
["Makowe z marakują"]
[]
["BOX DOMOWYCH NAPOJÓW","4 szt.",98,0,{"$f":"C93*D93","v":0}]
["Podpiwek Howieński x 2"]
["Kwas Chlebowy x 1"]
["Kompot z suszu x 1"]
[]
["BOX WĘDLIN","1,5 kg",80,0,{"$f":"C98*D98","v":0}]
["Boczek wędzony"]
["Szynka tradycyjnie wędzona"]
["Polędwica tradycyjna"]
[]
["DOSTAWA/ODBIÓR"]
["Dowóz",null,50,0,{"$f":"D104*C104","v":0}]
["Dowóz (zam. powyżej 1200 zł)",null,0,0,{"$f":"D105*C105","v":0}]
["Odbiór osobisty ",null,0,0,0]

{"sheet":"Zamówienie Draft","index":1,"n_rows":101,"n_cols":5,"rows_kept":101,"cut":false,"hidden":false,"merged":[[98,0,98,4],[100,0,100,4],[97,0,97,4],[99,0,99,4],[1,0,1,4],[5,1,5,4],[4,1,4,4],[3,1,3,4],[91,0,91,1],[90,0,90,1],[92,0,92,1]]}
[]
["CATERING WIGILIJNY"]
[]
["Imie i nazwisko:",{"$f":"Zamowienie!B1","v":0}]
["Telefon:",{"$f":"Zamowienie!B2","v":0}]
["E-mail:",{"$f":"Zamowienie!B3","v":0}]
[]
[]
[{"$f":"Zamowienie!A9","v":"NA GORĄCO"},"WAGA JEDNOSTKOWA","CENA JEDNOSTKOWA","ILOŚĆ","SUMA"]
[{"$f":"Zamowienie!A10","v":"Barszcz czerowny"},{"$f":"Zamowienie!B10","v":"250 ml"},{"$f":"Zamowienie!C10","v":10},{"$f":"Zamowienie!D10","v":0},{"$f":"Zamowienie!E10","v":0}]
[{"$f":"Zamowienie!A11","v":"Zupa grzybowa"},{"$f":"Zamowienie!B11","v":"250 ml"},{"$f":"Zamowienie!C11","v":21},{"$f":"Zamowienie!D11","v":0},{"$f":"Zamowienie!E11","v":0}]
[{"$f":"Zamowienie!A12","v":"Pierogi z kapustą i grzybami"},{"$f":"Zamowienie!B12","v":"10 szt."},{"$f":"Zamowienie!C12","v":40},{"$f":"Zamowienie!D12","v":0},{"$f":"Zamowienie!E12","v":0}]
[{"$f":"Zamowienie!A13","v":"Pyzy z mięsem wieprzowym│okrasa"},{"$f":"Zamowienie!B13","v":"3 szt."},{"$f":"Zamowienie!C13","v":35},{"$f":"Zamowienie!D13","v":0},{"$f":"Zamowienie!E13","v":0}]
[{"$f":"Zamowienie!A14","v":"Pierogi z kaczką i pomarańczą"},{"$f":"Zamowienie!B14","v":"10 szt."},{"$f":"Zamowienie!C14","v":45},{"$f":"Zamowienie!D14","v":0},{"$f":"Zamowienie!E14","v":0}]
[{"$f":"Zamowienie!A15","v":"Pierogi z jeleniem"},{"$f":"Zamowienie!B15","v":"10 szt."},{"$f":"Zamowienie!C15","v":45},{"$f":"Zamowienie!D15","v":0},{"$f":"Zamowienie!E15","v":0}]
[{"$f":"Zamowienie!A16","v":"Pierogi z serem na słodko"},{"$f":"Zamowienie!B16","v":"10 szt."},{"$f":"Zamowienie!C16","v":40},{"$f":"Zamowienie!D16","v":0},{"$f":"Zamowienie!E16","v":0}]
[{"$f":"Zamowienie!A17","v":"Kapusta wigilijna z grzybami"},{"$f":"Zamowienie!B17","v":"200 g"},{"$f":"Zamowienie!C17","v":15},{"$f":"Zamowienie!D17","v":0},{"$f":"Zamowienie!E17","v":0}]
[{"$f":"Zamowienie!A18","v":"Filet z pstrąga│krem rakowy"},{"$f":"Zamowienie!B18","v":"200 g"},{"$f":"Zamowienie!C18","v":36},{"$f":"Zamowienie!D18","v":0},{"$f":"Zamowienie!E18","v":0}]
[{"$f":"Zamowienie!A19","v":"Filet z okonia│sos milabelkowy"},{"$f":"Zamowienie!B19","v":"200 g"},{"$f":"Zamowienie!C19","v":39},{"$f":"Zamowienie!D19","v":0},{"$f":"Zamowienie!E19","v":0}]
[{"$f":"Zamowienie!A20","v":"Rolada drobiowa│sos pieczeniowy│mus grzybowo-wieprzowy"},{"$f":"Zamowienie!B20","v":"200 g"},{"$f":"Zamowienie!C20","v":29},{"$f":"Zamowienie!D20","v":0},{"$f":"Zamowienie!E20","v":0}]
[{"$f":"Zamowienie!A21","v":"Noga z kaczki│trawa żubrowa│sos pomarańczowy"},{"$f":"Zamowienie!B21","v":"200 g"},{"$f":"Zamowienie!C21","v":36},{"$f":"Zamowienie!D21","v":0},{"$f":"Zamowienie!E21","v":0}]
[{"$f":"Zamowienie!A22","v":"Karkówka z dzika│sos z pieczonych śliwek"},{"$f":"Zamowienie!B22","v":"200 g"},{"$f":"Zamowienie!C22","v":38},{"$f":"Zamowienie!D22","v":0},{"$f":"Zamowienie!E22","v":0}]
[{"$f":"Zamowienie!A23","v":"Kopytka domowe│pietruszka"},{"$f":"Zamowienie!B23","v":"200 g"},{"$f":"Zamowienie!C23","v":17},{"$f":"Zamowienie!D23","v":0},{"$f":"Zamowienie!E23","v":0}]
[{"$f":"Zamowienie!A24","v":"Buraki w glazurze pomarańczowo-miodowej"},{"$f":"Zamowienie!B24","v":"200 g"},{"$f":"Zamowienie!C24","v":15},{"$f":"Zamowienie!D24","v":0},{"$f":"Zamowienie!E24","v":0}]
[{"$f":"Zamowienie!A25","v":"Pasztecik drożdżowy z kapustą i grzybami"},{"$f":"Zamowienie!B25","v":"10 szt."},{"$f":"Zamowienie!C25","v":40},{"$f":"Zamowienie!D25","v":0},{"$f":"Zamowienie!E25","v":0}]
[{"$f":"Zamowienie!A28","v":"NA ZIMNO \n(zamówienia min. 0,5 kg lub wielokrotność)"},"WAGA JEDNOSTKOWA","CENA JEDNOSTKOWA","ILOŚĆ","SUMA"]
[{"$f":"Zamowienie!A29","v":"Śledź po staropolsku│jabłko│cebula"},{"$f":"Zamowienie!B29","v":"1 kg"},{"$f":"Zamowienie!C29","v":69},{"$f":"Zamowienie!D29","v":0},{"$f":"Zamowienie!E29","v":0}]
[{"$f":"Zamowienie!A30","v":"Ryba│sos warzywny"},{"$f":"Zamowienie!B30","v":"1 kg"},{"$f":"Zamowienie!C30","v":79},{"$f":"Zamowienie!D30","v":0},{"$f":"Zamowienie!E30","v":0}]
[{"$f":"Zamowienie!A31","v":"Sałatka ‘Szuba”"},{"$f":"Zamowienie!B31","v":"1 kg"},{"$f":"Zamowienie!C31","v":71},{"$f":"Zamowienie!D31","v":0},{"$f":"Zamowienie!E31","v":0}]
[{"$f":"Zamowienie!A32","v":"Tradycyjna sałatka jarzynowa"},{"$f":"Zamowienie!B32","v":"1 kg"},{"$f":"Zamowienie!C32","v":65},{"$f":"Zamowienie!D32","v":0},{"$f":"Zamowienie!E32","v":0}]
[{"$f":"Zamowienie!A33","v":"Tymbaliki rybne"},{"$f":"Zamowienie!B33","v":"6 szt."},{"$f":"Zamowienie!C33","v":54},{"$f":"Zamowienie!D33","v":0},{"$f":"Zamowienie!E33","v":0}]
[{"$f":"Zamowienie!A34","v":"Rolada ze szczupaka│sos tatarski"},{"$f":"Zamowienie!B34","v":"1 kg"},{"$f":"Zamowienie!C34","v":140},{"$f":"Zamowienie!D34","v":0},{"$f":"Zamowienie!E34","v":0}]
[{"$f":"Zamowienie!A35","v":"Jesiotr wędzony (ok. 1,5 kg)"},{"$f":"Zamowienie!B35","v":"1 szt."},{"$f":"Zamowienie!C35","v":170},{"$f":"Zamowienie!D35","v":0},{"$f":"Zamowienie!E35","v":0}]
[{"$f":"Zamowienie!A36","v":"Kaczka faszerowana (ok. 2 kg)"},{"$f":"Zamowienie!B36","v":"1 szt."},{"$f":"Zamowienie!C36","v":160},{"$f":"Zamowienie!D36","v":0},{"$f":"Zamowienie!E36","v":0}]
[{"$f":"Zamowienie!A37","v":"Perliczka faszerowana (ok. 1,4 kg)"},{"$f":"Zamowienie!B37","v":"1 szt."},{"$f":"Zamowienie!C37","v":170},{"$f":"Zamowienie!D37","v":0},{"$f":"Zamowienie!E37","v":0}]
[{"$f":"Zamowienie!A38","v":"Suraski ser podpuszczkowy (ok. 200 g)"},{"$f":"Zamowienie!B38","v":"1 szt."},{"$f":"Zamowienie!C38","v":23},{"$f":"Zamowienie!D38","v":0},{"$f":"Zamowienie!E38","v":0}]
[{"$f":"Zamowienie!A41","v":"NA SŁODKO"},"WAGA JEDNOSTKOWA","CENA JEDNOSTKOWA","ILOŚĆ","SUMA"]
[{"$f":"Zamowienie!A42","v":"Kutia z bakaliami"},{"$f":"Zamowienie!B42","v":"1 kg"},{"$f":"Zamowienie!C42","v":59},{"$f":"Zamowienie!D42","v":0},{"$f":"Zamowienie!E42","v":0}]
[{"$f":"Zamowienie!A43","v":"Sernik Howieński│pistacja (ok. 1,2 kg)"},{"$f":"Zamowienie!B43","v":"1,2 kg"},{"$f":"Zamowienie!C43","v":98},{"$f":"Zamowienie!D43","v":0},{"$f":"Zamowienie!E43","v":0}]
[{"$f":"Zamowienie!A44","v":"Piernik│konfitura śliwkowa (ok. 1,2 kg)"},{"$f":"Zamowienie!B44","v":"1,2 kg"},{"$f":"Zamowienie!C44","v":68},{"$f":"Zamowienie!D44","v":0},{"$f":"Zamowienie!E44","v":0}]
[{"$f":"Zamowienie!A45","v":"Strucla z makiem (ok. 1 kg)"},{"$f":"Zamowienie!B45","v":"1 kg"},{"$f":"Zamowienie!C45","v":70},{"$f":"Zamowienie!D45","v":0},{"$f":"Zamowienie!E45","v":0}]
[{"$f":"Zamowienie!A46","v":"Tarta ze śliwkami (ok. 1 kg)"},{"$f":"Zamowienie!B46","v":"1 kg"},{"$f":"Zamowienie!C46","v":62},{"$f":"Zamowienie!D46","v":0},{"$f":"Zamowienie!E46","v":0}]
[{"$f":"Zamowienie!A47","v":"Kompot z suszu"},{"$f":"Zamowienie!B47","v":"1 l"},{"$f":"Zamowienie!C47","v":27},{"$f":"Zamowienie!D47","v":0},{"$f":"Zamowienie!E47","v":0}]
[{"$f":"Zamowienie!A50","v":"HOWIEŃSKIE SPECJAŁY"},"WAGA JEDNOSTKOWA","CENA JEDNOSTKOWA","ILOŚĆ","SUMA"]
[{"$f":"Zamowienie!A51","v":"Pierniczki Howieńskie"},{"$f":"Zamowienie!B51","v":"10 szt."},{"$f":"Zamowienie!C51","v":15},{"$f":"Zamowienie!D51","v":0},{"$f":"Zamowienie!E51","v":0}]
[{"$f":"Zamowienie!A52","v":"Chleb Howieński (ok. 1 kg)"},{"$f":"Zamowienie!B52","v":"1 szt."},{"$f":"Zamowienie!C52","v":27},{"$f":"Zamowienie!D52","v":0},{"$f":"Zamowienie!E52","v":0}]
[{"$f":"Zamowienie!A53","v":"Chleb Howieński ze śliwką (ok. 1 kg)"},{"$f":"Zamowienie!B53","v":"1 szt."},{"$f":"Zamowienie!C53","v":28},{"$f":"Zamowienie!D53","v":0},{"$f":"Zamowienie!E53","v":0}]
[{"$f":"Zamowienie!A54","v":"Podpiwek Howieński"},{"$f":"Zamowienie!B54","v":"1 l"},{"$f":"Zamowienie!C54","v":27},{"$f":"Zamowienie!D54","v":0},{"$f":"Zamowienie!E54","v":0}]
[{"$f":"Zamowienie!A55","v":"Howieński kwas chlebowy"},{"$f":"Zamowienie!B55","v":"1 l"},{"$f":"Zamowienie!C55","v":27},{"$f":"Zamowienie!D55","v":0},{"$f":"Zamowienie!E55","v":0}]
[{"$f":"Zamowienie!A58","v":"WĘDLINY│PASZTETY│ROLADY \n(zamówienia min. 0,5 kg lub wielokrotność)"},"WAGA JEDNOSTKOWA","CENA JEDNOSTKOWA","ILOŚĆ","SUMA"]
[{"$f":"Zamowienie!A59","v":"Boczek wędzony "},{"$f":"Zamowienie!B59","v":"1 kg"},{"$f":"Zamowienie!C59","v":52},{"$f":"Zamowienie!D59","v":0},{"$f":"Zamowienie!E59","v":0}]
[{"$f":"Zamowienie!A60","v":"Szynka tradycyjnie wędzona"},{"$f":"Zamowienie!B60","v":"1 kg"},{"$f":"Zamowienie!C60","v":58},{"$f":"Zamowienie!D60","v":0},{"$f":"Zamowienie!E60","v":0}]
[{"$f":"Zamowienie!A61","v":"Polędwica tradycyjna"},{"$f":"Zamowienie!B61","v":"1 kg"},{"$f":"Zamowienie!C61","v":70},{"$f":"Zamowienie!D61","v":0},{"$f":"Zamowienie!E61","v":0}]
[{"$f":"Zamowienie!A62","v":"Kiełbasa palcówka swojska"},{"$f":"Zamowienie!B62","v":"1 kg"},{"$f":"Zamowienie!C62","v":54},{"$f":"Zamowienie!D62","v":0},{"$f":"Zamowienie!E62","v":0}]
[{"$f":"Zamowienie!A63","v":"Kiełbasa z sarny"},{"$f":"Zamowienie!B63","v":"1 kg"},{"$f":"Zamowienie!C63","v":110},{"$f":"Zamowienie!D63","v":0},{"$f":"Zamowienie!E63","v":0}]
[{"$f":"Zamowienie!A64","v":"Schab z dzika"},{"$f":"Zamowienie!B64","v":"1 kg"},{"$f":"Zamowienie!C64","v":108},{"$f":"Zamowienie!D64","v":0},{"$f":"Zamowienie!E64","v":0}]
[{"$f":"Zamowienie!A65","v":"Karkówka z dzika wędzona"},{"$f":"Zamowienie!B65","v":"1 kg"},{"$f":"Zamowienie!C65","v":98},{"$f":"Zamowienie!D65","v":0},{"$f":"Zamowienie!E65","v":0}]
[{"$f":"Zamowienie!A66","v":"Schab wieprzowy dojrzewający w ziołach"},{"$f":"Zamowienie!B66","v":"1 kg"},{"$f":"Zamowienie!C66","v":64},{"$f":"Zamowienie!D66","v":0},{"$f":"Zamowienie!E66","v":0}]
[{"$f":"Zamowienie!A67","v":"Słonina wieprzowa slolona"},{"$f":"Zamowienie!B67","v":"1 kg"},{"$f":"Zamowienie!C67","v":54},{"$f":"Zamowienie!D67","v":0},{"$f":"Zamowienie!E67","v":0}]
[{"$f":"Zamowienie!A68","v":"Kabanosy z dzika"},{"$f":"Zamowienie!B68","v":"1 kg"},{"$f":"Zamowienie!C68","v":105},{"$f":"Zamowienie!D68","v":0},{"$f":"Zamowienie!E68","v":0}]
[{"$f":"Zamowienie!A69","v":"Pasztet wieprzowy│śliwka"},{"$f":"Zamowienie!B69","v":"1 kg"},{"$f":"Zamowienie!C69","v":54},{"$f":"Zamowienie!D69","v":0},{"$f":"Zamowienie!E69","v":0}]
[{"$f":"Zamowienie!A70","v":"Pasztet z jelenia│żurawina"},{"$f":"Zamowienie!B70","v":"1 kg"},{"$f":"Zamowienie!C70","v":84},{"$f":"Zamowienie!D70","v":0},{"$f":"Zamowienie!E70","v":0}]
[{"$f":"Zamowienie!A71","v":"Pasztet drobiowy│morela│pistacja"},{"$f":"Zamowienie!B71","v":"1 kg"},{"$f":"Zamowienie!C71","v":72},{"$f":"Zamowienie!D71","v":0},{"$f":"Zamowienie!E71","v":0}]
[{"$f":"Zamowienie!A74","v":"W SŁOIKU"},"WAGA JEDNOSTKOWA","CENA JEDNOSTKOWA","ILOŚĆ","SUMA"]
[{"$f":"Zamowienie!A75","v":"Sos tatarski"},{"$f":"Zamowienie!B75","v":"250 g"},{"$f":"Zamowienie!C75","v":22},{"$f":"Zamowienie!D75","v":0},{"$f":"Zamowienie!E75","v":0}]
[{"$f":"Zamowienie!A76","v":"Mus dyniowy do mięs"},{"$f":"Zamowienie!B76","v":"250 g"},{"$f":"Zamowienie!C76","v":22},{"$f":"Zamowienie!D76","v":0},{"$f":"Zamowienie!E76","v":0}]
[{"$f":"Zamowienie!A77","v":"Sos winegret z pestkamu"},{"$f":"Zamowienie!B77","v":"250 g"},{"$f":"Zamowienie!C77","v":24},{"$f":"Zamowienie!D77","v":0},{"$f":"Zamowienie!E77","v":0}]
[{"$f":"Zamowienie!A78","v":"Dynia marynowana"},{"$f":"Zamowienie!B78","v":"250 g"},{"$f":"Zamowienie!C78","v":21},{"$f":"Zamowienie!D78","v":0},{"$f":"Zamowienie!E78","v":0}]
[{"$f":"Zamowienie!A79","v":"Smalec wiejski"},{"$f":"Zamowienie!B79","v":"250 g"},{"$f":"Zamowienie!C79","v":22},{"$f":"Zamowienie!D79","v":0},{"$f":"Zamowienie!E79","v":0}]
[{"$f":"Zamowienie!A80","v":"Słony Karmel Howieński"},{"$f":"Zamowienie!B80","v":"250 g"},{"$f":"Zamowienie!C80","v":24},{"$f":"Zamowienie!D80","v":0},{"$f":"Zamowienie!E80","v":0}]
[{"$f":"Zamowienie!A81","v":"Howieńskie masło orzechowe"},{"$f":"Zamowienie!B81","v":"250 g"},{"$f":"Zamowienie!C81","v":28},{"$f":"Zamowienie!D81","v":0},{"$f":"Zamowienie!E81","v":0}]
[{"$f":"Zamowienie!A82","v":"Słodka przepalanka Howieńska 40%"},{"$f":"Zamowienie!B82","v":"500 ml"},{"$f":"Zamowienie!C82","v":130},{"$f":"Zamowienie!D82","v":0},{"$f":"Zamowienie!E82","v":0}]
[{"$f":"Zamowienie!A83","v":"Białowieski ‘Bimber’ śliwkowy 63%"},{"$f":"Zamowienie!B83","v":"500 ml"},{"$f":"Zamowienie!C83","v":160},{"$f":"Zamowienie!D83","v":0},{"$f":"Zamowienie!E83","v":0}]
[{"$f":"Zamowienie!A84","v":"Specjał ‘Podlaski Samogon’ 50%"},{"$f":"Zamowienie!B84","v":"500 ml"},{"$f":"Zamowienie!C84","v":150},{"$f":"Zamowienie!D84","v":0},{"$f":"Zamowienie!E84","v":0}]
[{"$f":"Zamowienie!A85","v":"Naturalna nalewka pigwowa 30%"},{"$f":"Zamowienie!B85","v":"500 ml"},{"$f":"Zamowienie!C85","v":150},{"$f":"Zamowienie!D85","v":0},{"$f":"Zamowienie!E85","v":0}]
[]
[{"$f":"Zamowienie!A88","v":"BOX CIAST"},{"$f":"Zamowienie!B88","v":"1,5 kg"},{"$f":"Zamowienie!C88","v":89},{"$f":"Zamowienie!D88","v":0},{"$f":"Zamowienie!E88","v":0}]
["Orzechowiec"]
["Pani Walewska"]
["Makowe z marakują"]
[{"$f":"Zamowienie!A93","v":"BOX DOMOWYCH NAPOJÓW"},{"$f":"Zamowienie!B93","v":"4 szt."},{"$f":"Zamowienie!C93","v":98},{"$f":"Zamowienie!D93","v":0},{"$f":"Zamowienie!E93","v":0}]
[{"$f":"Zamowienie!A94","v":"Podpiwek Howieński x 2"}]
[{"$f":"Zamowienie!A95","v":"Kwas Chlebowy x 1"}]
[{"$f":"Zamowienie!A96","v":"Kompot z suszu x 1"}]
[{"$f":"Zamowienie!A98","v":"BOX WĘDLIN"},{"$f":"Zamowienie!B98","v":"1,5 kg"},{"$f":"Zamowienie!C98","v":80},{"$f":"Zamowienie!D98","v":0},{"$f":"Zamowienie!E98","v":0}]
[{"$f":"Zamowienie!A99","v":"Boczek wędzony"}]
[{"$f":"Zamowienie!A100","v":"Szynka tradycyjnie wędzona"}]
[{"$f":"Zamowienie!A101","v":"Polędwica tradycyjna"}]
[]
[{"$f":"Zamowienie!A103","v":"DOSTAWA/ODBIÓR"}]
[{"$f":"Zamowienie!A104","v":"Dowóz"},null,50,{"$f":"Zamowienie!D104","v":0},{"$f":"C91*D91","v":0}]
[{"$f":"Zamowienie!A105","v":"Dowóz (zam. powyżej 1200 zł)"},null,"GRATIS",{"$f":"Zamowienie!D105","v":0},"GRATIS"]
[{"$f":"Zamowienie!A106","v":"Odbiór osobisty "},null,0,{"$f":"Zamowienie!D106","v":0},{"$f":"C93*D93","v":0}]
[]
[null,null,null,"Suma",{"$f":"SUM(E10:E25,E27:E36,E38:E43,E45:E49,E51:E63,E65:E75,E77,E81,E85,E91:E93)","v":0}]
["PŁATNOŚĆ: przelew (FV…)"]
[]
["Potrawy wydajemy na zimno w naczyniach jednorazowych."]
["DOWÓZ w godzinach 9.00-13.00"]
["ODBIÓR osobisty w Stodole Howieńskiej w godzinach 9.00-12.00"]
["dn. 24.12.2023 r. "]